Cogmind - Beta 15 @@@ ROGUE MODE // 2025.08.08 @ 15:06:11 Player: Inverisimilidude Result: Destroyed by as-85501 with Assembled Rifle Performance ------------- Evolutions (0) 0 Regions Visited (2) 400 Robots Destroyed (4) 20 Value Destroyed (37) 37 Prototype IDs (0) 0 Alien Tech Used (0) 0 Bonus (0) 0 TOTAL SCORE: 457 Bonus ------- None Cogmind --------- Core Integrity 0/250 Matter 300/300 Energy 99/100 System Corruption 0% Temperature Cool (0) Movement Core (50) Location -10/Mines Parts ------- > --- POWER (1) -------- (None) > --- PROPULSION (2) --- (None) > --- UTILITY (2) ------ (None) > --- WEAPON (2) ------- (None) > --- INVENTORY (5) ---- Wheel Wheel Seismic Detector Weapon Shielding Light Armor Plating Peak State ------------ > --- POWER ------------ Light Ion Engine > --- PROPULSION ------- Light Treads Compact Wheel > --- UTILITY ---------- Huge Storage Unit Light Armor Plating > --- WEAPON ----------- Assault Rifle Light Assault Rifle > --- INVENTORY -------- Ion Engine Ion Engine Light Treads Wheel Wheel Compact Wheel Seismic Detector Small Laser Assault Rifle Light Assault Rifle [Rating: 8] Favorites ----------- Power Light Ion Engine Engine Light Ion Engine Propulsion Compact Wheel Treads Light Treads Wheel Compact Wheel Utility Seismic Detector Device Seismic Detector Storage Huge Storage Unit Protection Light Armor Plating Weapon Assault Rifle Ballistic Gun Assault Rifle Build | -11 -10 -10 ------- Run | Yrd Mat Min Slots Evolved . | . . . Power . | . . . Propulsion . | . . . Utility . | . . . Weapon . | . . . Parts Attached 12 | 8 . 4 Power 1 | 1 . . Engine 1 | 1 . . Core . | . . . Reactor . | . . . Propulsion 3 | 3 . . Treads 1 | 1 . . Leg . | . . . Wheel 2 | 2 . . Hover . | . . . Flight . | . . . Utility 5 | 2 . 3 Device 2 | 1 . 1 Storage 2 | 1 . 1 Processor . | . . . Hackware . | . . . Protection 1 | . . 1 Artifact . | . . . Weapon 3 | 2 . 1 Energy Gun . | . . . Energy Cannon . | . . . Ballistic Gun 3 | 2 . 1 Ballistic Cannon . | . . . Launcher . | . . . Special Weapon . | . . . Impact Weapon . | . . . Slashing Weapon . | . . . Piercing Weapon . | . . . Special Melee Weapon . | . . . Unidentified Prototypes . | . . . Parts Lost 2 | . . 2 Power 1 | . . 1 Propulsion . | . . . Utility . | . . . Weapon 1 | . . 1 Highest Loss Streak 2 | . . 2 To Critical Strikes . | . . . Average Backups 6 | 2 5 8 Power 1 | . 1 1 Propulsion 3 | 1 3 3 Utility . | . . 1 Weapon 1 | . 1 1 Tool/Special . | . . . Unused Backups 8 | . . 8 Power 2 | . . 2 Propulsion 3 | . . 3 Utility 1 | . . 1 Weapon 2 | . . 2 Tool/Special . | . . . Average Slot Usage (%) 84 | . 100 77 Engine 11 | . 14 10 Treads 11 | . 14 10 Wheel 12 | . 14 11 Device 11 | . 14 10 Storage 11 | . 14 10 Ballistic Gun 23 | . 28 21 Peak Build Rating 8 | 7 7 8 Average Rating 6 | 5 6 5 On Entrance 4 | . 7 7 Naked Turns 120 | . . 120 Heaviest Build 89 | 12 12 89 Greatest Support 32 | 32 20 32 Greatest Overweight (x) 5 | . . 5 Average Overweight (x) 1 | . . 2 Largest Inventory Capacity 25 | 8 8 25 Average Capacity 15 | 7 8 19 Most Carried 12 | 5 5 12 Average Carried 6 | 2 5 8 Final Capacity 8 | 8 8 5 Final Carried 5 | 5 5 5 Class Distribution -------------------- 100% | Mutant Dominant Class ---------------- Mutant | -10/Materials Mutant | -10/Mines Resources | -11 -10 -10 ----------- Run | Yrd Mat Min Matter Collected 368 | 257 . 111 Remotely . | . . . Salvage Created 83 | 28 . 55 Parts 5 | 3 . 2 Haulers Intercepted . | . . . Recyclers Shooed . | . . . Parts Field Recycled . | . . . Retrieved Matter . | . . . Parts Self-Destructed . | . . . Prevented . | . . . Kills | -11 -10 -10 ------- Run | Yrd Mat Min Combat Hostiles Destroyed 3 | . . 3 Guns 3 | . . 3 Classes Destroyed 2 | 1 . 1 Tunneler 1 | 1 . . Swarmer 3 | . . 3 Best Kill Streak 3 | 1 . 3 Combat Bots Only 3 | . . 3 Max Kills in Single Turn 1 | 1 . 1 Gunslinging . | . . . Exploded . | . . . Melee . | . . . Uniques/NPCs Destroyed . | . . . Combat | -11 -10 -10 -------- Run | Yrd Mat Min Hostile Shots Fired 36 | . 8 28 Missed 12 | . 1 11 Hits 24 | . 7 17 Projectile 24 | . 7 17 AOE 9 | . . 9 Damage Taken 496 | . 56 440 Core 259 | . . 259 Absorbed by Shields . | . . . Core Remaining (%) 100 | 100 . . Volleys Fired 7 | 1 . 6 Largest 2 | 2 . 2 Hottest 40 | 40 . 40 Shots Fired 14 | 2 . 12 Gun 14 | 2 . 12 Cannon . | . . . Launcher . | . . . Special . | . . . Kinetic 14 | 2 . 12 Thermal . | . . . Explosive . | . . . Electromagnetic . | . . . Robot Hit Streak 3 | 1 . 3 Robot Miss Streak 3 | 1 . 3 Penetration Max . | . . . Secondary Targets . | . . . Shots Hit Robots 5 | 1 . 4 Core Hits 5 | 1 . 4 Critical Kills . | . . . Critical Parts Destroyed . | . . . Critical Strikes . | . . . Melee Attacks . | . . . Impact . | . . . Slashing . | . . . Piercing . | . . . Sneak Attacks . | . . . Combat Hostiles . | . . . Follow-up Attacks . | . . . Damage Inflicted 87 | 10 . 77 Guns 55 | 10 . 45 Cannons . | . . . Explosions . | . . . Melee . | . . . Ramming 32 | . . 32 Kinetic 55 | 10 . 45 Thermal . | . . . Explosive . | . . . Electromagnetic . | . . . Impact . | . . . Slashing . | . . . Piercing . | . . . Highest Corruption . | . . . Average Corruption . | . . . Corruption Purged . | . . . Corruption Blocked . | . . . Overload Shots . | . . . Overflow Damage . | . . . Projectiles . | . . . Explosions . | . . . Melee . | . . . Knockbacks . | . . . Impact . | . . . Kinetic . | . . . Secondary . | . . . Self-Inflicted Damage 14 | . . 14 Shots . | . . . Rammed 8 | . . 8 Targets Rammed 8 | . . 8 Kicked . | . . . Crushed . | . . . Highest Temperature 6 | . . 6 Average Temperature 4 | . . 4 Received Heat Transfer . | . . . Siege Activations . | . . . Martial Activations . | . . . Shielding Activations . | . . . Robots Disrupted . | . . . Combat Hostiles . | . . . Robots Corrupted . | . . . Combat Hostiles . | . . . Parts Fried . | . . . Impact Corruptions . | . . . Robots Melted . | . . . Combat Hostiles . | . . . Parts Melted . | . . . Heat Transferred . | . . . Parts Sabotaged . | . . . Parts Stolen . | . . . Parts Stripped . | . . . Power Chain Reactions . | . . . Alert | -11 -10 -10 ------- Run | Yrd Mat Min Maximum Alert Level . | . . . Low Security (%) 100 | 100 100 100 Level 1 . | . . . Level 2 . | . . . Level 3 . | . . . Level 4 . | . . . Level 5 . | . . . High Security . | . . . Max Security . | . . . Peak Influence 75 | 5 15 75 Initial . | . . . Average 9 | 1 . 15 Influence Increases 147 | 5 22 120 Destroy 0b10 Robot/C 60 | . . 60 Destroy 0b10 Robot/NC 5 | 5 . . Destroy Leader 10 | . . 10 Successful Hack 12 | . 7 5 Lose Combat Pursuer 60 | . 15 45 Influence Decreases 147 | 5 22 120 Time Decay 147 | 5 22 120 Squads Dispatched . | . . . Investigation . | . . . Extermination . | . . . Reinforcement . | . . . Assault . | . . . Garrison . | . . . Intercept . | . . . Searches Triggered . | . . . Construction Impeded . | . . . Haulers Reinforced . | . . . Active Scanning Responses . | . . . Cargo Convoy Interrupts . | . . . Stealth | -11 -10 -10 --------- Run | Yrd Mat Min Distress Signals 2 | . 2 . Communications Jammed . | . . . Distress Signals . | . . . Times Spotted 17 | . 5 12 Peak Tracking Total 5 | . 5 5 Tactical Retreats 4 | . 1 3 Traps | -11 -10 -10 ------- Run | Yrd Mat Min Traps Triggered 1 | . 1 . Indirectly . | . . . Trap Hack Attempts . | . . . Triggered . | . . . Disarmed . | . . . Reprogrammed . | . . . Reused . | . . . Traps Extracted . | . . . Installed . | . . . Triggered . | . . . Machines | -11 -10 -10 ---------- Run | Yrd Mat Min Machines Disabled . | . . . Max in Single Turn . | . . . Machines Repaired . | . . . Machines Dismantled . | . . . Machines Sabotaged . | . . . Overloaded Fab Kills . | . . . Hacking | -11 -10 -10 --------- Run | Yrd Mat Min Machines Accessed 3 | . 2 1 Terminals 3 | . 2 1 Fabricators . | . . . Repair Stations . | . . . Recycling Units . | . . . Scanalyzers . | . . . Garrison Access . | . . . Total Hacks 9 | . 6 3 Successful 2 | . 1 1 Failed 7 | . 5 2 Catastrophic . | . . . Database Lockouts . | . . . Manual 3 | . 3 . Terminals 9 | . 6 3 Fabricators . | . . . Repair Stations . | . . . Recycling Units . | . . . Scanalyzers . | . . . Garrison Access . | . . . Terminal Hacks 2 | . 1 1 Branch Access Points 1 | . 1 . Zone Layout 1 | . . 1 Fabricator Hacks . | . . . Repair Station Hacks . | . . . Recycling Unit Hacks . | . . . Scanalyzer . | . . . Garrison Access Hacks . | . . . Unauthorized Hacks . | . . . Terminals . | . . . Fabricators . | . . . Repair Stations . | . . . Recycling Units . | . . . Scanalyzers . | . . . Garrison Access . | . . . Data Cores Recovered . | . . . Used . | . . . Hacking Detections 3 | . 2 1 Full Trace Events 1 | . 1 . Feedback Events . | . . . Feedback Blocked . | . . . Robot Schematics Acquired . | . . . Robots Built . | . . . Authchips . | . . . Time . | . . . Total Robot Build Rating . | . . . Part Schematics Acquired . | . . . Parts Built . | . . . Authchips . | . . . Time . | . . . Total Part Build Rating . | . . . Parts Repaired . | . . . Time . | . . . Parts Recycled . | . . . Recycled Matter . | . . . Retrieved Matter . | . . . Retrieved Components . | . . . Parts Scanalyzed . | . . . Part Schematics Acquired . | . . . Parts Damaged . | . . . Bothacking | -11 -10 -10 ------------ Run | Yrd Mat Min Used RIF Installer . | . . . Robots Hacked . | . . . Non-combat . | . . . Combat . | . . . Robot Hacks Applied . | . . . Relay Couplers Released . | . . . Fabnet Peak Effective % . | . . . Robots Rewired . | . . . Allies Hacked . | . . . Hacks Repelled . | . . . Allies | -11 -10 -10 -------- Run | Yrd Mat Min Total Allies 2 | . . 2 Largest Group 2 | . . 2 Highest-Rated Group 45 | . . 45 Highest-Rated Ally 31 | . . 31 Total Orders . | . . . Ally Attacks . | . . . Total Damage . | . . . Kills . | . . . Allies Corrupted . | . . . Allies Melted . | . . . Intel | -11 -10 -10 ------- Run | Yrd Mat Min Active Infowar (turns) 666 | 25 255 386 Sensors 3 | . . 3 Seismic 663 | 25 255 383 Robot Analysis Total . | . . . Derelict Logs Recovered 1 | . . 1 Drone Launches . | . . . Drone Recoveries . | . . . Exploration | -11 -10 -10 ------------- Run | Yrd Mat Min Turns Passed 860 | 73 255 532 Spaces Moved 530 | 55 110 365 Core 156 | 3 . 153 Treads 90 | . 72 18 Legs . | . . . Wheels 284 | 52 38 194 Hover . | . . . Flight . | . . . Fastest Speed 50 | 50 100 50 Average Speed 122 | 97 139 121 Slowest Speed 175 | 100 160 175 Overloaded Moves . | . . . Propulsion Burnouts . | . . . Robots Hopped . | . . . Potential Cave-ins . | . . . Cave-ins Triggered . | . . . Exploration Rate (%) 32 | 3 17 77 Regions Visited 2 Branch Regions 1 Pre-discovered Areas . | . . . Known Exits Taken 1 | . 1 . Unknown Exits Taken 1 | 1 . . Scrap Searched 2 | . . 2 Spaces Dug . | . . . Terrain Destroyed . | . . . Melee . | . . . Projectile . | . . . AOE . | . . . Terrain Rammed . | . . . Walls Destroyed . | . . . Machines Disabled . | . . . Actions | -11 -10 -10 --------- Run | Yrd Mat Min Total 717 | 68 210 439 Wait 144 | . 98 46 Move 528 | 54 109 365 Hop . | . . . Pick Up 12 | 5 . 7 Fast Attach 10 | 7 3 . Attach . | . . . Detach . | . . . Swap 7 | 1 . 6 Drop 1 | . . 1 Fire 7 | 1 . 6 Melee . | . . . Ram 8 | . . 8 Kick . | . . . Crush . | . . . Escape Stasis . | . . . Rewire . | . . . Trap . | . . . Miscellaneous . | . . . Route ------- -11/Scrapyard -10/Materials -10/Mines (discovered 3 exits: [*Mat x2] / [*Sub]) History --------- Turn | Location | Event 17 | -11/Scrapyard | Discovered new exit (range 15) 74 | -11/Scrapyard | Entered Materials 107 | -10/Materials | Identified exit to Mines 311 | -10/Materials | Build established: Mutant 329 | -10/Materials | Entered Mines 415 | -10/Mines | Discovered new exit (range 8) 506 | -10/Mines | Discovered new exit (range 6) 623 | -10/Mines | Discovered new exit (range 7) 709 | -10/Mines | Assembled infested the area 741 | -10/Mines | Released all parts (5) 742 | -10/Mines | Core integrity fell below 50% 828 | -10/Mines | Core integrity fell below 20% 850 | -10/Mines | Learned Materials security intel 861 | -10/Mines | Destroyed by as-85501 with Assembled Rifle Last Messages --------------- 00737_ Lgt. Ion Engine destroyed. 00741_ Released Sensor Array. 00741_ Released Com. Wheel. 00741_ Released Huge Storage Unit. 00741_ Released Com. Wheel. 00741_ Released Assault Rifle. 00741_ K-01 Serf collects debris. 00742_ The unstable cave ceiling collapses. 00747_ K-01 Serf collects debris. 00791_ U-05 Engineer lays Concrete. 00823_ as-37982 destroyed. 00826_ Slammed into as-54776. 00832_ Destabilizing: Core damaged (-2). 00833_ Slammed into as-54776. 00850_ Acquired derelict log, extracted data. Data stored: Materials security intel. 00851_ A pair of derelicts emerge from the shadows: "We're, um, lost. You wouldn't happen to know the way out of here, would you?" 00858_ 8I-1JX(z) destroyed. Map ----- +----------------------------------------------------+ | | | | | | | | | | | | | | | | | | | | | | | | | | | ????????????????????????????????? | | ????????????????????????????????? | | ????????????????????????????????? | | ????????????????????????????????? | | ????????????????????????????????? | | ????????????????????????????????? | | ????????????????????????????????? | | ?????????????????????####???????? | | ????????????????????## ##??????? | | ######??????????????# #??????? | | ! ##??????????????# ##?????? | | ! ##?????????????## ###???? | | ##?????????????## @ ##??? | | #??????????????## ##?? | | ## #??????????????# #?? | | ##?# #?????????????## #?? | | #???## #?????????##### ##?? | | #??????##?????????# ##??? | | #?????????????????# ## g ##???? | | #????????????????????## ##????? | | ##?????????????????????# ##?????? | | ???????????????????#???#*#??????? | | ????????? ##!###a#??????? | | ????????? *% =%= =#??????? | | ????????? % % ##### #??????? | | ??????????????????????# #??????? | | ??????????????????????# #??????? | | ??????????????????????# #??????? | | ??????????????????????# #??????? | | ??????????????######### ###????? | | ??????????????# #????? | | ??????????##### """ #???? | | ??????????# ##### """ #???? | | ??????????#= #???# """ #???? | | ??????????#%######???# ##???? | | ??????????#!#????????## #????? | | ??????????# ##????????## #???? | +----------------------------------------------------+ Best States ------------- Heat Dissipation 25 Energy Generation 10 Energy Capacity 125 Matter Stores 300 Matter Capacity 300 Sight Range 16 Robot Scan Range 14 Terrain Scan Density 10 Armor Coverage 150 Evasion (%) 50 Recoil Reduction 1 Item Schematics ----------------- None Robot Schematics ------------------ None Fabricated ------------ Nothing Repaired ---------- Nothing Alien Tech Used ----------------- None Achievements -------------- None Challenges ------------ None Game ------ Seed PowerPoweredPower Manual? 0 Play Time 00:07:21 Cumulative 105.7 hours Start 2025.08.08 @ 15:01:36 End 2025.08.08 @ 15:06:11 Sessions 1 Manual Loads 0 Difficulty Rogue Special Mode None Game No. 132 Rogue 132 Adventurer 0 Explorer 0 Win Type - Total 0 Types 0/0/0/0/0/0/0/0/0/0 Lore% 63 Gallery% 46 Achievement% 44 Wizard Run 0 Options --------- Layout 1 ASCII 0 Keyboard 0 Movement Arrows Keybinds 0 Fullscreen 1 Font 24/Smallcaps Map View 50x35 Zoom Use 0% Tactical HUD 1 Map Filters NONE Filters NONE Steam 1 RUN: 609f2ad6-5b0f-4aa7-bfc6-af7dd383b190